[Event "Titled Tuesday Blitz January 25 2022"]
[White "Brodowski, Piotr"]
[Black "Demchenko, Anton"]
[WhiteFideId "1124480"]
[BlackFideId "4160258"]
[WhiteElo "2422"]
[BlackElo "2539"]
[Result "0-1"]
[Round "03"]
[TimeControl "180+1"]
[Date "2022.01.26"]
[WhiteClock "0:00:04"]
[BlackClock "0:00:07"]

1. c4 {[%clk 0:02:59]}  e5 {[%clk 0:02:59]} 2. Nc3 {[%clk 0:02:58]}  Bb4 {[%clk 0:02:59]} 3. g3 {[%clk 0:02:53]}  Bxc3 {[%clk 0:02:57]} 4. dxc3 {[%clk 0:02:47]}  d6 {[%clk 0:02:58]} 5. Bg2 {[%clk 0:02:46]}  Nc6 {[%clk 0:02:56]} 6. e4 {[%clk 0:02:42]}  Nge7 {[%clk 0:02:54]} 7. Nf3 {[%clk 0:02:37]}  h6 {[%clk 0:02:49]} 8. Nd2 {[%clk 0:02:37]}  Be6 {[%clk 0:02:45]} 9. b3 {[%clk 0:02:33]}  O-O {[%clk 0:02:35]} 10. Nf1 {[%clk 0:02:30]}  f5 {[%clk 0:02:35]} 11. exf5 {[%clk 0:02:27]}  Nxf5 {[%clk 0:02:34]} 12. Ne3 {[%clk 0:02:27]}  Nxe3 {[%clk 0:02:33]} 13. Bxe3 {[%clk 0:02:27]}  Qd7 {[%clk 0:02:28]} 14. h3 {[%clk 0:02:27]}  Rae8 {[%clk 0:02:07]} 15. Qd2 {[%clk 0:02:27]}  a5 {[%clk 0:01:54]} 16. a4 {[%clk 0:02:21]}  Ne7 {[%clk 0:01:52]} 17. O-O-O {[%clk 0:02:17]}  Nf5 {[%clk 0:01:16]} 18. g4 {[%clk 0:01:39]}  Nxe3 {[%clk 0:00:52]} 19. fxe3 {[%clk 0:01:40]}  b6 {[%clk 0:00:44]} 20. Be4 {[%clk 0:01:34]}  Qe7 {[%clk 0:00:40]} 21. Rdf1 {[%clk 0:01:19]}  Qh4 {[%clk 0:00:38]} 22. Qg2 {[%clk 0:01:15]}  Kh8 {[%clk 0:00:18]} 23. Bf5 {[%clk 0:01:01]}  Bxf5 {[%clk 0:00:16]} 24. gxf5 {[%clk 0:01:01]}  e4 {[%clk 0:00:13]} 25. Rf4 {[%clk 0:00:59]}  Qf6 {[%clk 0:00:14]} 26. Kc2 {[%clk 0:00:56]}  c6 {[%clk 0:00:12]} 27. Rd1 {[%clk 0:00:53]}  Re5 {[%clk 0:00:11]} 28. Rd4 {[%clk 0:00:37]}  d5 {[%clk 0:00:11]} 29. cxd5 {[%clk 0:00:33]}  cxd5 {[%clk 0:00:11]} 30. c4 {[%clk 0:00:21]}  dxc4 {[%clk 0:00:10]} 31. Rxc4 {[%clk 0:00:21]}  Rxf5 {[%clk 0:00:11]} 32. Rxf5 {[%clk 0:00:18]}  Qxf5 {[%clk 0:00:12]} 33. Qxe4 {[%clk 0:00:14]}  Qxh3 {[%clk 0:00:12]} 34. Kb2 {[%clk 0:00:10]}  Qh2+ {[%clk 0:00:12]} 35. Rc2 {[%clk 0:00:09]}  Qg1 {[%clk 0:00:10]} 36. Qe6 {[%clk 0:00:06]}  Qg5 {[%clk 0:00:08]} 37. Qxb6 {[%clk 0:00:05]}  Re8 {[%clk 0:00:06]} 38. Re2 {[%clk 0:00:03]}  Qe5+ {[%clk 0:00:06]} 39. Ka2 {[%clk 0:00:02]}  Rd8 {[%clk 0:00:06]} 40. Qb5 {[%clk 0:00:02]}  Qxb5 {[%clk 0:00:05]} 41. axb5 {[%clk 0:00:03]}  Rb8 {[%clk 0:00:06]} 42. Ka3 {[%clk 0:00:03]}  Rxb5 {[%clk 0:00:07]} 43. Ka4 {[%clk 0:00:04]}  Re5 {[%clk 0:00:07]} 44. e4 {[%clk 0:00:03]}  g5 {[%clk 0:00:07]} 45. b4 {[%clk 0:00:04]}  axb4 {[%clk 0:00:07]} 46. Kxb4 {[%clk 0:00:05]}  g4 {[%clk 0:00:07]} 47. Kc4 {[%clk 0:00:05]}  Rg5 {[%clk 0:00:06]} 48. Kd4 {[%clk 0:00:06]}  g3 {[%clk 0:00:06]} 49. Rg2 {[%clk 0:00:03]}  h5 {[%clk 0:00:07]} 50. Ke3 {[%clk 0:00:04]}  h4 {[%clk 0:00:07]} 51. Kf4 {[%clk 0:00:05]}  Rg7 {[%clk 0:00:06]} 52. e5 {[%clk 0:00:05]}  Kg8 {[%clk 0:00:06]} 53. Rg1 {[%clk 0:00:05]}  Kf8 {[%clk 0:00:06]} 54. Kf5 {[%clk 0:00:05]}  Ke7 {[%clk 0:00:06]} 55. Kf4 {[%clk 0:00:05]}  Ke6 {[%clk 0:00:06]} 56. Ra1 {[%clk 0:00:05]}  g2 {[%clk 0:00:06]} 57. Ra6+ {[%clk 0:00:06]}  Kd5 {[%clk 0:00:07]} 58. Ra5+ {[%clk 0:00:04]}  Kc4 {[%clk 0:00:07]} 59. Ra4+ {[%clk 0:00:04]}  Kb5 {[%clk 0:00:08]} 60. Ra1 {[%clk 0:00:05]}  h3 {[%clk 0:00:07]} 61. e6 {[%clk 0:00:04]}  h2 {[%clk 0:00:07]} 62. Kf5 {[%clk 0:00:04]}  g1=Q {[%clk 0:00:07]} 0-1


[Site "https://www.chess.com"]

[Event "Titled Tuesday Blitz January 25 2022"]
[White "Ceres, Dragos"]
[Black "Ibrahimli, Murad"]
[WhiteFideId "13905864"]
[BlackFideId "13410229"]
[WhiteElo "2072"]
[BlackElo "2109"]
[Result "0-1"]
[Round "03"]
[TimeControl "180+1"]
[Date "2022.01.26"]
[WhiteClock "0:00:03"]
[BlackClock "0:00:21"]

1. e4 {[%clk 0:03:00]}  c5 {[%clk 0:02:59]} 2. Nf3 {[%clk 0:03:00]}  d6 {[%clk 0:03:00]} 3. d4 {[%clk 0:03:00]}  cxd4 {[%clk 0:03:01]} 4. Nxd4 {[%clk 0:03:01]}  Nf6 {[%clk 0:03:01]} 5. Nc3 {[%clk 0:03:02]}  a6 {[%clk 0:03:01]} 6. Be3 {[%clk 0:03:01]}  Ng4 {[%clk 0:03:00]} 7. Bc1 {[%clk 0:02:59]}  Nc6 {[%clk 0:02:59]} 8. f3 {[%clk 0:02:51]}  Nge5 {[%clk 0:02:55]} 9. Be3 {[%clk 0:02:45]}  Nxd4 {[%clk 0:02:54]} 10. Bxd4 {[%clk 0:02:45]}  Nc6 {[%clk 0:02:54]} 11. Be3 {[%clk 0:02:43]}  g6 {[%clk 0:02:54]} 12. Qd2 {[%clk 0:02:43]}  Bg7 {[%clk 0:02:54]} 13. Bc4 {[%clk 0:02:44]}  Be6 {[%clk 0:02:49]} 14. Bxe6 {[%clk 0:02:35]}  fxe6 {[%clk 0:02:50]} 15. O-O {[%clk 0:02:35]}  O-O {[%clk 0:02:48]} 16. Rab1 {[%clk 0:02:36]}  Qa5 {[%clk 0:02:47]} 17. a3 {[%clk 0:02:15]}  Ne5 {[%clk 0:02:44]} 18. Ne2 {[%clk 0:01:59]}  Qxd2 {[%clk 0:02:35]} 19. Bxd2 {[%clk 0:02:00]}  Nc4 {[%clk 0:02:36]} 20. Bc3 {[%clk 0:01:56]}  Bxc3 {[%clk 0:02:35]} 21. Nxc3 {[%clk 0:01:57]}  Nd2 {[%clk 0:02:35]} 22. Rfd1 {[%clk 0:01:53]}  Nxb1 {[%clk 0:02:35]} 23. Rxb1 {[%clk 0:01:53]}  Rac8 {[%clk 0:02:36]} 24. Kf2 {[%clk 0:01:53]}  g5 {[%clk 0:02:33]} 25. h3 {[%clk 0:01:52]}  Kg7 {[%clk 0:02:33]} 26. Ke3 {[%clk 0:01:53]}  Kg6 {[%clk 0:02:33]} 27. Rd1 {[%clk 0:01:53]}  Rc4 {[%clk 0:02:32]} 28. Kd3 {[%clk 0:01:52]}  Rfc8 {[%clk 0:02:32]} 29. Rd2 {[%clk 0:01:52]}  b5 {[%clk 0:02:32]} 30. Nd1 {[%clk 0:01:49]}  R4c5 {[%clk 0:02:25]} 31. Ne3 {[%clk 0:01:47]}  h5 {[%clk 0:02:25]} 32. c3 {[%clk 0:01:46]}  a5 {[%clk 0:02:25]} 33. Nc2 {[%clk 0:01:46]}  Kf6 {[%clk 0:02:21]} 34. Nd4 {[%clk 0:01:43]}  e5 {[%clk 0:02:14]} 35. Nb3 {[%clk 0:01:42]}  R5c7 {[%clk 0:02:12]} 36. Nxa5 {[%clk 0:01:42]}  g4 {[%clk 0:02:13]} 37. hxg4 {[%clk 0:01:42]}  hxg4 {[%clk 0:02:14]} 38. Nb3 {[%clk 0:01:37]}  g3 {[%clk 0:02:10]} 39. Nc1 {[%clk 0:01:36]}  Rg8 {[%clk 0:02:05]} 40. Ne2 {[%clk 0:01:33]}  e6 {[%clk 0:02:01]} 41. Ke3 {[%clk 0:01:28]}  Rh7 {[%clk 0:02:01]} 42. f4 {[%clk 0:01:24]}  exf4+ {[%clk 0:01:57]} 43. Kxf4 {[%clk 0:01:24]}  Rh4+ {[%clk 0:01:58]} 44. Kf3 {[%clk 0:01:23]}  Ke5 {[%clk 0:01:58]} 45. Rd4 {[%clk 0:01:13]}  Rf8+ {[%clk 0:01:21]} 46. Kxg3 {[%clk 0:01:12]}  Rxe4 {[%clk 0:01:20]} 47. Rxe4+ {[%clk 0:01:13]}  Kxe4 {[%clk 0:01:21]} 48. Nd4 {[%clk 0:01:14]}  e5 {[%clk 0:01:07]} 49. Nxb5 {[%clk 0:01:13]}  d5 {[%clk 0:01:08]} 50. a4 {[%clk 0:01:06]}  Kd3 {[%clk 0:01:08]} 51. Nc7 {[%clk 0:01:01]}  Kc4 {[%clk 0:00:54]} 52. b3+ {[%clk 0:00:44]}  Kxc3 {[%clk 0:00:52]} 53. Nxd5+ {[%clk 0:00:44]}  Kxb3 {[%clk 0:00:52]} 54. a5 {[%clk 0:00:41]}  Kc4 {[%clk 0:00:53]} 55. Nb6+ {[%clk 0:00:35]}  Kd4 {[%clk 0:00:29]} 56. a6 {[%clk 0:00:15]}  Rf7 {[%clk 0:00:29]} 57. Nc8 {[%clk 0:00:10]}  Rc7 {[%clk 0:00:29]} 58. Nd6 {[%clk 0:00:10]}  Kd5 {[%clk 0:00:28]} 59. Nb5 {[%clk 0:00:08]}  Rc8 {[%clk 0:00:27]} 60. a7 {[%clk 0:00:09]}  Kc6 {[%clk 0:00:23]} 61. Nc3 {[%clk 0:00:08]}  Ra8 {[%clk 0:00:23]} 62. Kf3 {[%clk 0:00:06]}  Rxa7 {[%clk 0:00:23]} 63. Ke4 {[%clk 0:00:07]}  Ra3 {[%clk 0:00:20]} 64. Nd1 {[%clk 0:00:04]}  Kd6 {[%clk 0:00:20]} 65. Ne3 {[%clk 0:00:04]}  Ra4+ {[%clk 0:00:20]} 66. Kf5 {[%clk 0:00:04]}  Rf4+ {[%clk 0:00:20]} 67. Kg5 {[%clk 0:00:05]}  Ke6 {[%clk 0:00:21]} 68. g3 {[%clk 0:00:03]}  Rf3 {[%clk 0:00:21]} 0-1


[Site "https://www.chess.com"]

[Event "Titled Tuesday Blitz January 25 2022"]
[White "Dastan, Muhammed Batuhan"]
[Black "Chor, Kevin"]
[WhiteFideId "6300014"]
[BlackFideId "2090740"]
[WhiteElo "2410"]
[BlackElo "2649"]
[Result "1-0"]
[Round "03"]
[TimeControl "180+1"]
[Date "2022.01.26"]
[WhiteClock "0:00:52"]
[BlackClock "0:00:19"]

1. d4 {[%clk 0:03:00]}  Nf6 {[%clk 0:02:59]} 2. c4 {[%clk 0:03:00]}  g6 {[%clk 0:02:59]} 3. Nc3 {[%clk 0:03:01]}  Bg7 {[%clk 0:02:58]} 4. e4 {[%clk 0:03:01]}  d6 {[%clk 0:02:58]} 5. h3 {[%clk 0:03:01]}  O-O {[%clk 0:02:55]} 6. Be3 {[%clk 0:03:02]}  e5 {[%clk 0:02:45]} 7. d5 {[%clk 0:03:02]}  a5 {[%clk 0:02:45]} 8. g4 {[%clk 0:03:01]}  Na6 {[%clk 0:02:46]} 9. Qd2 {[%clk 0:03:01]}  Nc5 {[%clk 0:02:46]} 10. f3 {[%clk 0:03:00]}  c6 {[%clk 0:02:42]} 11. Nge2 {[%clk 0:03:00]}  cxd5 {[%clk 0:02:41]} 12. cxd5 {[%clk 0:03:01]}  Bd7 {[%clk 0:02:40]} 13. h4 {[%clk 0:03:01]}  b5 {[%clk 0:02:38]} 14. Ng3 {[%clk 0:02:54]}  b4 {[%clk 0:02:37]} 15. Nd1 {[%clk 0:02:41]}  Qb6 {[%clk 0:02:16]} 16. g5 {[%clk 0:02:41]}  Nh5 {[%clk 0:02:10]} 17. Nxh5 {[%clk 0:02:41]}  gxh5 {[%clk 0:02:11]} 18. Nf2 {[%clk 0:02:41]}  f5 {[%clk 0:02:08]} 19. gxf6 {[%clk 0:02:36]}  Rxf6 {[%clk 0:02:07]} 20. Be2 {[%clk 0:02:25]}  Bb5 {[%clk 0:02:03]} 21. Rg1 {[%clk 0:02:19]}  Kh8 {[%clk 0:01:58]} 22. Rc1 {[%clk 0:02:15]}  Raf8 {[%clk 0:01:54]} 23. Rg3 {[%clk 0:02:11]}  Rf4 {[%clk 0:01:03]} 24. Bxb5 {[%clk 0:01:34]}  Qxb5 {[%clk 0:01:01]} 25. Qe2 {[%clk 0:01:35]}  Qxe2+ {[%clk 0:00:55]} 26. Kxe2 {[%clk 0:01:35]}  Rxh4 {[%clk 0:00:55]} 27. Bxc5 {[%clk 0:01:32]}  dxc5 {[%clk 0:00:56]} 28. Rxc5 {[%clk 0:01:33]}  Rh2 {[%clk 0:00:51]} 29. Rh3 {[%clk 0:01:28]}  Rg2 {[%clk 0:00:33]} 30. Rxh5 {[%clk 0:01:20]}  a4 {[%clk 0:00:33]} 31. d6 {[%clk 0:01:14]}  Rd8 {[%clk 0:00:29]} 32. Rd5 {[%clk 0:01:03]}  Bf6 {[%clk 0:00:25]} 33. Kf1 {[%clk 0:01:01]}  Rg7 {[%clk 0:00:20]} 34. Ng4 {[%clk 0:01:01]}  Bg5 {[%clk 0:00:20]} 35. Nxe5 {[%clk 0:00:59]}  Bf4 {[%clk 0:00:20]} 36. Rf5 {[%clk 0:00:58]}  Bc1 {[%clk 0:00:19]} 37. Nf7+ {[%clk 0:00:52]} 1-0


[Site "https://www.chess.com"]

[Event "Titled Tuesday Blitz January 25 2022"]
[White "Dauner, Benedikt"]
[Black "Moskalenko, Alexander"]
[WhiteFideId "16225899"]
[BlackFideId "4155351"]
[WhiteElo "2230"]
[BlackElo "2515"]
[Result "1/2-1/2"]
[Round "03"]
[TimeControl "180+1"]
[Date "2022.01.26"]
[WhiteClock "0:00:04"]
[BlackClock "0:00:05"]

1. d4 {[%clk 0:03:00]}  Nf6 {[%clk 0:02:59]} 2. Nf3 {[%clk 0:03:00]}  c5 {[%clk 0:03:00]} 3. d5 {[%clk 0:03:00]}  e6 {[%clk 0:03:00]} 4. Nc3 {[%clk 0:02:59]}  d6 {[%clk 0:02:58]} 5. e4 {[%clk 0:02:56]}  e5 {[%clk 0:02:55]} 6. h3 {[%clk 0:02:45]}  Be7 {[%clk 0:02:55]} 7. g4 {[%clk 0:02:43]}  O-O {[%clk 0:02:56]} 8. Nd2 {[%clk 0:02:36]}  Ne8 {[%clk 0:02:55]} 9. Nc4 {[%clk 0:02:33]}  Bg5 {[%clk 0:02:56]} 10. Be3 {[%clk 0:02:17]}  Bxe3 {[%clk 0:02:55]} 11. fxe3 {[%clk 0:02:17]}  Qh4+ {[%clk 0:02:54]} 12. Kd2 {[%clk 0:02:14]}  Nd7 {[%clk 0:02:55]} 13. Qe1 {[%clk 0:02:04]}  Qe7 {[%clk 0:02:54]} 14. Be2 {[%clk 0:01:56]}  b6 {[%clk 0:02:51]} 15. a4 {[%clk 0:01:53]}  Rb8 {[%clk 0:02:51]} 16. Qg3 {[%clk 0:01:45]}  a6 {[%clk 0:02:49]} 17. Na3 {[%clk 0:01:44]}  Nc7 {[%clk 0:02:49]} 18. h4 {[%clk 0:01:38]}  b5 {[%clk 0:02:16]} 19. axb5 {[%clk 0:01:37]}  Nb6 {[%clk 0:02:17]} 20. bxa6 {[%clk 0:01:12]}  Nxa6 {[%clk 0:02:17]} 21. Nab5 {[%clk 0:01:08]}  Nb4 {[%clk 0:02:09]} 22. Ra7 {[%clk 0:01:04]}  Rb7 {[%clk 0:02:08]} 23. Rha1 {[%clk 0:00:57]}  Rxa7 {[%clk 0:01:49]} 24. Rxa7 {[%clk 0:00:54]}  Qd8 {[%clk 0:01:50]} 25. g5 {[%clk 0:00:47]}  Ba6 {[%clk 0:01:37]} 26. h5 {[%clk 0:00:36]}  Nc8 {[%clk 0:01:31]} 27. Rc7 {[%clk 0:00:17]}  Bxb5 {[%clk 0:01:25]} 28. Nxb5 {[%clk 0:00:18]}  Na6 {[%clk 0:01:26]} 29. Rc6 {[%clk 0:00:12]}  Nb8 {[%clk 0:01:23]} 30. h6 {[%clk 0:00:10]}  Nxc6 {[%clk 0:01:22]} 31. dxc6 {[%clk 0:00:11]}  g6 {[%clk 0:01:04]} 32. Bc4 {[%clk 0:00:09]}  Nb6 {[%clk 0:01:05]} 33. b3 {[%clk 0:00:04]}  Nxc4+ {[%clk 0:01:00]} 34. bxc4 {[%clk 0:00:05]}  Qa5+ {[%clk 0:00:53]} 35. Kd3 {[%clk 0:00:03]}  Rb8 {[%clk 0:00:21]} 36. Qg4 {[%clk 0:00:03]}  Rf8 {[%clk 0:00:14]} 37. Qd7 {[%clk 0:00:02]}  Qe1 {[%clk 0:00:13]} 38. Qe7 {[%clk 0:00:02]}  Qd1+ {[%clk 0:00:13]} 39. Kc3 {[%clk 0:00:02]}  Qa1+ {[%clk 0:00:13]} 40. Kd3 {[%clk 0:00:02]}  Qd1+ {[%clk 0:00:12]} 41. Kc3 {[%clk 0:00:03]}  Qe1+ {[%clk 0:00:08]} 42. Kd3 {[%clk 0:00:03]}  Qf1+ {[%clk 0:00:05]} 43. Kc3 {[%clk 0:00:03]}  Qe1+ {[%clk 0:00:05]} 44. Kd3 {[%clk 0:00:04]} 1/2-1/2


[Site "https://www.chess.com"]

[Event "Titled Tuesday Blitz January 25 2022"]
[White "Goltseva, Ekaterina"]
[Black "Abarca Gonzalez, Nicolas"]
[WhiteFideId "24173770"]
[BlackFideId "3409422"]
[WhiteElo "2140"]
[BlackElo "2504"]
[Result "0-1"]
[Round "03"]
[TimeControl "180+1"]
[Date "2022.01.26"]
[WhiteClock "0:00:54"]
[BlackClock "0:01:33"]

1. d4 {[%clk 0:03:00]}  Nf6 {[%clk 0:02:59]} 2. c4 {[%clk 0:03:01]}  e5 {[%clk 0:02:59]} 3. Nf3 {[%clk 0:03:01]}  exd4 {[%clk 0:02:53]} 4. Nxd4 {[%clk 0:02:56]}  Bb4+ {[%clk 0:02:53]} 5. Nc3 {[%clk 0:02:51]}  O-O {[%clk 0:02:52]} 6. Bg5 {[%clk 0:02:48]}  h6 {[%clk 0:02:44]} 7. Bh4 {[%clk 0:02:47]}  d5 {[%clk 0:02:24]} 8. e3 {[%clk 0:02:45]}  c5 {[%clk 0:02:22]} 9. Nc2 {[%clk 0:02:41]}  Bxc3+ {[%clk 0:02:20]} 10. bxc3 {[%clk 0:02:40]}  g5 {[%clk 0:02:17]} 11. Bg3 {[%clk 0:02:40]}  Qa5 {[%clk 0:02:17]} 12. Be5 {[%clk 0:02:29]}  Ng4 {[%clk 0:02:17]} 13. Qxd5 {[%clk 0:01:58]}  Be6 {[%clk 0:02:05]} 14. Qxb7 {[%clk 0:01:36]}  Nxe5 {[%clk 0:01:59]} 15. Qxa8 {[%clk 0:01:16]}  Qxc3+ {[%clk 0:01:58]} 16. Kd1 {[%clk 0:01:16]}  Rd8+ {[%clk 0:01:54]} 17. Kc1 {[%clk 0:01:16]}  Nbc6 {[%clk 0:01:41]} 18. Qb7 {[%clk 0:01:03]}  Nb4 {[%clk 0:01:39]} 19. Qe4 {[%clk 0:00:57]}  Ned3+ {[%clk 0:01:34]} 20. Bxd3 {[%clk 0:00:57]}  Nxd3+ {[%clk 0:01:34]} 21. Qxd3 {[%clk 0:00:53]}  Rxd3 {[%clk 0:01:32]} 22. Rb1 {[%clk 0:00:52]}  Rd2 {[%clk 0:01:31]} 23. Rb2 {[%clk 0:00:52]}  Bf5 {[%clk 0:01:32]} 24. e4 {[%clk 0:00:52]}  Bxe4 {[%clk 0:01:32]} 25. Rd1 {[%clk 0:00:53]}  Rxc2+ {[%clk 0:01:32]} 26. Rxc2 {[%clk 0:00:54]}  Qxc2# {[%clk 0:01:33]} 0-1


[Site "https://www.chess.com"]

[Event "Titled Tuesday Blitz January 25 2022"]
[White "Golubka, Petro"]
[Black "Sjugirov, Sanan"]
[WhiteFideId "14114224"]
[BlackFideId "4189302"]
[WhiteElo "2392"]
[BlackElo "2602"]
[Result "0-1"]
[Round "03"]
[TimeControl "180+1"]
[Date "2022.01.26"]
[WhiteClock "0:00:08"]
[BlackClock "0:00:12"]

1. e4 {[%clk 0:02:46]}  c5 {[%clk 0:02:59]} 2. Nf3 {[%clk 0:02:45]}  Nc6 {[%clk 0:02:59]} 3. d4 {[%clk 0:02:43]}  cxd4 {[%clk 0:02:59]} 4. Nxd4 {[%clk 0:02:44]}  Nf6 {[%clk 0:03:00]} 5. Nc3 {[%clk 0:02:42]}  e5 {[%clk 0:03:00]} 6. Ndb5 {[%clk 0:02:41]}  d6 {[%clk 0:03:00]} 7. Bg5 {[%clk 0:02:40]}  a6 {[%clk 0:03:01]} 8. Na3 {[%clk 0:02:41]}  b5 {[%clk 0:03:01]} 9. Nd5 {[%clk 0:02:41]}  Be7 {[%clk 0:03:00]} 10. Bxf6 {[%clk 0:02:40]}  Bxf6 {[%clk 0:03:01]} 11. c3 {[%clk 0:02:41]}  Bg5 {[%clk 0:02:54]} 12. Nc2 {[%clk 0:02:37]}  Ne7 {[%clk 0:02:50]} 13. h4 {[%clk 0:02:36]}  Bh6 {[%clk 0:02:45]} 14. a4 {[%clk 0:02:33]}  bxa4 {[%clk 0:02:40]} 15. Ncb4 {[%clk 0:02:30]}  O-O {[%clk 0:02:37]} 16. Rxa4 {[%clk 0:02:22]}  a5 {[%clk 0:02:30]} 17. Nxe7+ {[%clk 0:02:22]}  Qxe7 {[%clk 0:02:30]} 18. Nd5 {[%clk 0:02:23]}  Qb7 {[%clk 0:02:27]} 19. b3 {[%clk 0:02:13]}  Bd7 {[%clk 0:02:01]} 20. Ra3 {[%clk 0:02:05]}  Kh8 {[%clk 0:01:42]} 21. Bc4 {[%clk 0:01:41]}  f5 {[%clk 0:01:25]} 22. exf5 {[%clk 0:01:40]}  Bxf5 {[%clk 0:01:25]} 23. O-O {[%clk 0:01:40]}  Bd7 {[%clk 0:00:36]} 24. Qd3 {[%clk 0:01:27]}  Bc6 {[%clk 0:00:35]} 25. Rfa1 {[%clk 0:01:19]}  Qa7 {[%clk 0:00:22]} 26. Ne3 {[%clk 0:00:46]}  Qc5 {[%clk 0:00:17]} 27. b4 {[%clk 0:00:21]}  axb4 {[%clk 0:00:17]} 28. Rxa8 {[%clk 0:00:19]}  Rxa8 {[%clk 0:00:17]} 29. Rxa8+ {[%clk 0:00:20]}  Bxa8 {[%clk 0:00:18]} 30. cxb4 {[%clk 0:00:20]}  Qxb4 {[%clk 0:00:17]} 31. Bd5 {[%clk 0:00:20]}  Bxe3 {[%clk 0:00:12]} 32. Bxa8 {[%clk 0:00:15]}  Qe1+ {[%clk 0:00:12]} 33. Kh2 {[%clk 0:00:15]}  Qxf2 {[%clk 0:00:12]} 34. Qe4 {[%clk 0:00:08]}  Bf4+ {[%clk 0:00:12]} 0-1


[Site "https://www.chess.com"]

[Event "Titled Tuesday Blitz January 25 2022"]
[White "Hakobyan, Aram"]
[Black "Mirzoev, Azer"]
[WhiteFideId "13306677"]
[BlackFideId "13400304"]
[WhiteElo "2557"]
[BlackElo "2525"]
[Result "0-1"]
[Round "03"]
[TimeControl "180+1"]
[Date "2022.01.26"]
[WhiteClock "0:00:05"]
[BlackClock "0:00:08"]

1. d4 {[%clk 0:03:00]}  d5 {[%clk 0:02:59]} 2. Nf3 {[%clk 0:03:00]}  c6 {[%clk 0:02:59]} 3. c3 {[%clk 0:03:00]}  Bf5 {[%clk 0:02:59]} 4. Qb3 {[%clk 0:03:00]}  Qb6 {[%clk 0:02:58]} 5. Bf4 {[%clk 0:03:00]}  e6 {[%clk 0:02:58]} 6. e3 {[%clk 0:03:01]}  Nd7 {[%clk 0:02:58]} 7. c4 {[%clk 0:03:02]}  Ngf6 {[%clk 0:02:53]} 8. Nc3 {[%clk 0:03:02]}  Nh5 {[%clk 0:02:35]} 9. Bg3 {[%clk 0:02:47]}  Nxg3 {[%clk 0:02:34]} 10. hxg3 {[%clk 0:02:48]}  Be7 {[%clk 0:02:31]} 11. Be2 {[%clk 0:02:37]}  h6 {[%clk 0:02:31]} 12. O-O {[%clk 0:02:34]}  O-O {[%clk 0:02:31]} 13. Rfc1 {[%clk 0:02:29]}  a5 {[%clk 0:02:30]} 14. Qd1 {[%clk 0:02:05]}  Rfd8 {[%clk 0:02:17]} 15. Na4 {[%clk 0:01:46]}  Qa7 {[%clk 0:02:14]} 16. c5 {[%clk 0:01:41]}  Rab8 {[%clk 0:02:09]} 17. Ne5 {[%clk 0:01:40]}  Nxe5 {[%clk 0:02:01]} 18. dxe5 {[%clk 0:01:41]}  f6 {[%clk 0:02:01]} 19. exf6 {[%clk 0:01:22]}  Bxf6 {[%clk 0:02:00]} 20. Bg4 {[%clk 0:01:23]}  Re8 {[%clk 0:01:47]} 21. Bxf5 {[%clk 0:01:17]}  exf5 {[%clk 0:01:47]} 22. Rab1 {[%clk 0:01:17]}  Re4 {[%clk 0:01:42]} 23. Nb6 {[%clk 0:01:18]}  Rbe8 {[%clk 0:01:29]} 24. Qh5 {[%clk 0:01:19]}  R8e5 {[%clk 0:01:21]} 25. Nd7 {[%clk 0:01:17]}  Re6 {[%clk 0:01:16]} 26. Qxf5 {[%clk 0:01:17]}  b5 {[%clk 0:01:14]} 27. Nxf6+ {[%clk 0:01:01]}  Rxf6 {[%clk 0:01:14]} 28. Qc8+ {[%clk 0:01:01]}  Kh7 {[%clk 0:01:14]} 29. Rc2 {[%clk 0:00:56]}  a4 {[%clk 0:01:13]} 30. Rd1 {[%clk 0:00:54]}  Qe7 {[%clk 0:01:12]} 31. Qb8 {[%clk 0:00:40]}  Qf7 {[%clk 0:01:05]} 32. Re2 {[%clk 0:00:32]}  Qe7 {[%clk 0:01:05]} 33. Qb6 {[%clk 0:00:21]}  Rc4 {[%clk 0:01:00]} 34. Qa5 {[%clk 0:00:16]}  Qxc5 {[%clk 0:00:59]} 35. Qd2 {[%clk 0:00:17]}  Kg8 {[%clk 0:00:55]} 36. b3 {[%clk 0:00:17]}  axb3 {[%clk 0:00:55]} 37. axb3 {[%clk 0:00:18]}  Rc3 {[%clk 0:00:55]} 38. Qb2 {[%clk 0:00:18]}  b4 {[%clk 0:00:54]} 39. Ra1 {[%clk 0:00:19]}  Rf8 {[%clk 0:00:49]} 40. Qb1 {[%clk 0:00:19]}  Qb5 {[%clk 0:00:47]} 41. Rd2 {[%clk 0:00:19]}  Qb7 {[%clk 0:00:42]} 42. Rda2 {[%clk 0:00:17]}  Qf7 {[%clk 0:00:41]} 43. Qb2 {[%clk 0:00:11]}  Qf6 {[%clk 0:00:37]} 44. Ra7 {[%clk 0:00:10]}  c5 {[%clk 0:00:31]} 45. Rd7 {[%clk 0:00:08]}  Rf7 {[%clk 0:00:09]} 46. Ra8+ {[%clk 0:00:09]}  Kh7 {[%clk 0:00:09]} 47. Qb1+ {[%clk 0:00:09]}  Qf5 {[%clk 0:00:08]} 48. Qxf5+ {[%clk 0:00:06]}  Rxf5 {[%clk 0:00:08]} 49. Raa7 {[%clk 0:00:07]}  Rg5 {[%clk 0:00:08]} 50. Kh2 {[%clk 0:00:05]}  Rh5+ {[%clk 0:00:08]} 51. Kg1 {[%clk 0:00:05]}  Rc1# {[%clk 0:00:08]} 0-1


[Site "https://www.chess.com"]